Cogmind - Beta 15 @@@ ROGUE MODE // 2025.10.04 @ 22:51:29 Player: DietSnapple Result: Destroyed by Y-45 Defender with Beam Rifle Performance ------------- Evolutions (1) 500 Regions Visited (3) 600 Robots Destroyed (19) 95 Value Destroyed (349) 349 Prototype IDs (2) 40 Alien Tech Used (0) 0 Bonus (0) 0 TOTAL SCORE: 1584 Bonus ------- None Cogmind --------- Core Integrity 0/400 Matter 300/300 Energy 100/100 System Corruption 0% Temperature Cool (9) Movement Core (200) Ox3 Location -9/Materials Parts ------- > --- POWER (1) -------- (None) > --- PROPULSION (3) --- (None) > --- UTILITY (3) ------ Medium Storage Unit > --- WEAPON (2) ------- (None) > --- INVENTORY (10) --- Small Storage Unit Peak State ------------ > --- POWER ------------ Light Ion Engine > --- PROPULSION ------- Compact Wheel > --- UTILITY ---------- Medium Storage Unit Large Battery Core Shielding > --- WEAPON ----------- EM Shotgun EM Shotgun > --- INVENTORY -------- Small Storage Unit [Rating: 9] Favorites ----------- Power Ion Engine Engine Ion Engine Propulsion Compact Wheel Wheel Compact Wheel Utility Medium Storage Unit Device Heat Sink Storage Medium Storage Unit Protection Core Shielding Weapon Medium Laser Energy Gun Medium Laser Ballistic Gun Assault Rifle Build | -11 -10 -10 -9 ------- Run | Yrd Mat Min Mat Slots Evolved 2 | . . . 2 Power . | . . . . Propulsion 1 | . . . 1 Utility 1 | . . . 1 Weapon . | . . . . Parts Attached 19 | 7 5 2 5 Power 3 | 1 1 . 1 Engine 3 | 1 1 . 1 Core . | . . . . Reactor . | . . . . Propulsion 4 | 2 2 . . Treads . | . . . . Leg . | . . . . Wheel 4 | 2 2 . . Hover . | . . . . Flight . | . . . . Utility 6 | 1 2 1 2 Device 2 | . 1 . 1 Storage 3 | 1 1 1 . Processor . | . . . . Hackware . | . . . . Protection 1 | . . . 1 Artifact . | . . . . Weapon 6 | 3 . 1 2 Energy Gun 5 | 2 . 1 2 Energy Cannon . | . . . . Ballistic Gun 1 | 1 . . . Ballistic Cannon . | . . . . Launcher . | . . . . Special Weapon . | . . . . Impact Weapon . | . . . . Slashing Weapon . | . . . . Piercing Weapon . | . . . . Special Melee Weapon . | . . . . Unidentified Prototypes . | . . . . Parts Lost 12 | . 2 3 7 Power 2 | . . 1 1 Propulsion 4 | . 2 . 2 Utility 3 | . . 1 2 Weapon 3 | . . 1 2 Highest Loss Streak 5 | . 2 2 5 To Critical Strikes . | . . . . Average Backups 2 | . 2 3 1 Power . | . . . . Propulsion . | . . . . Utility 1 | . 1 2 1 Weapon . | . . . . Tool/Special . | . . . . Unused Backups . | . . . . Power . | . . . . Propulsion . | . . . . Utility . | . . . . Weapon . | . . . . Tool/Special . | . . . . Average Slot Usage (%) 83 | . 91 90 57 Engine 9 | . 14 7 3 Wheel 21 | . 23 28 10 Device 6 | . 10 2 4 Storage 18 | . 14 23 22 Energy Gun 25 | . 28 27 16 Peak Build Rating 9 | 6 7 7 9 Average Rating 6 | 5 6 6 6 On Entrance 4 | . 6 7 6 Naked Turns . | . . . . Heaviest Build 23 | 14 20 22 23 Greatest Support 32 | 20 32 32 32 Greatest Overweight (x) 4 | . 4 . 4 Average Overweight (x) . | . . . 1 Largest Inventory Capacity 10 | 8 10 10 10 Average Capacity 9 | 7 8 10 10 Most Carried 5 | . 5 4 3 Average Carried 2 | . 2 3 1 Final Capacity 10 | 8 10 10 10 Final Carried 4 | . 4 3 1 Class Distribution -------------------- 100% | Mutant Dominant Class ---------------- Mutant | -10/Materials Mutant | -10/Mines Mutant | -9/Materials Resources | -11 -10 -10 -9 ----------- Run | Yrd Mat Min Mat Matter Collected 380 | 205 85 40 50 Remotely . | . . . . Salvage Created 535 | 121 266 62 86 Parts 29 | 5 12 6 6 Haulers Intercepted . | . . . . Recyclers Shooed 1 | 1 . . . Parts Field Recycled . | . . . . Retrieved Matter . | . . . . Parts Self-Destructed . | . . . . Prevented . | . . . . Kills | -11 -10 -10 -9 ------- Run | Yrd Mat Min Mat Combat Hostiles Destroyed 12 | . 8 3 1 Guns 11 | . 7 3 1 Classes Destroyed 7 | 2 2 . 3 Worker 1 | . . . 1 Tunneler 4 | 3 . 1 . Recycler 1 | 1 . . . Mechanic 1 | . . . 1 Swarmer 6 | . 3 3 . Grunt 5 | . 5 . . Sentry 1 | . . . 1 Best Kill Streak 5 | 3 5 3 1 Combat Bots Only 5 | . 5 3 1 Max Kills in Single Turn 1 | 1 1 1 1 Gunslinging . | . . . . Exploded . | . . . . Melee . | . . . . Uniques/NPCs Destroyed . | . . . . Combat | -11 -10 -10 -9 -------- Run | Yrd Mat Min Mat Hostile Shots Fired 138 | . 52 32 54 Missed 40 | . 19 7 14 Hits 98 | . 33 25 40 Projectile 98 | . 33 25 40 AOE 2 | . . . 2 Critical Strikes 4 | . 1 . 3 Damage Taken 1476 | . 378 254 844 Core 625 | . 130 93 402 Absorbed by Shields . | . . . . Core Remaining (%) 55 | 100 . 10 . Volleys Fired 64 | 16 24 16 8 Largest 2 | 2 2 2 2 Hottest 100 | 100 100 100 100 Shots Fired 103 | 25 45 17 16 Gun 103 | 25 45 17 16 Cannon . | . . . . Launcher . | . . . . Special . | . . . . Kinetic . | . . . . Thermal 95 | 25 45 17 8 Explosive . | . . . . Electromagnetic 8 | . . . 8 Robot Hit Streak 11 | 5 9 5 11 Robot Miss Streak 3 | 3 3 2 1 Penetration Max . | . . . . Secondary Targets 1 | . 1 . . Max Gunslinging Chain 1 | . 1 . . Shots Hit Robots 74 | 16 34 11 13 Core Hits 31 | 5 14 4 8 Critical Kills . | . . . . Critical Parts Destroyed . | . . . . Critical Strikes 4 | 2 1 1 . Burn 4 | 2 1 1 . Melee Attacks . | . . . . Impact . | . . . . Slashing . | . . . . Piercing . | . . . . Sneak Attacks . | . . . . Combat Hostiles . | . . . . Follow-up Attacks . | . . . . Damage Inflicted 986 | 196 419 138 233 Guns 924 | 196 419 138 171 Cannons . | . . . . Explosions 51 | . . . 51 Melee . | . . . . Ramming 11 | . . . 11 Kinetic . | . . . . Thermal 866 | 196 419 138 113 Explosive . | . . . . Electromagnetic 109 | . . . 109 Impact . | . . . . Slashing . | . . . . Piercing . | . . . . Highest Corruption . | . . . . Average Corruption . | . . . . Corruption Purged . | . . . . Corruption Blocked . | . . . . Overload Shots . | . . . . Overflow Damage 15 | . . . 15 Projectiles . | . . . . Explosions 15 | . . . 15 Melee . | . . . . Knockbacks . | . . . . Impact . | . . . . Kinetic . | . . . . Secondary . | . . . . Self-Inflicted Damage 51 | . . . 51 Shots 1 | . . . 1 Rammed 7 | . . . 7 Targets Rammed 7 | . . . 7 Kicked . | . . . . Crushed . | . . . . Highest Temperature 283 | 283 216 145 87 Average Temperature 98 | 159 87 68 38 Received Heat Transfer 444 | . 165 51 228 Effects 4 | 1 3 . . Interference 4 | 1 3 . . Siege Activations . | . . . . Martial Activations . | . . . . Shielding Activations . | . . . . Robots Disrupted . | . . . . Combat Hostiles . | . . . . Robots Corrupted . | . . . . Combat Hostiles . | . . . . Parts Fried . | . . . . Impact Corruptions . | . . . . Robots Melted 1 | . 1 . . Combat Hostiles 1 | . 1 . . Parts Melted 5 | 2 3 . . Heat Transferred 2788 | 740 1332 481 235 Parts Sabotaged . | . . . . Parts Stolen . | . . . . Parts Stripped . | . . . . Power Chain Reactions 1 | . . . 1 Alert | -11 -10 -10 -9 ------- Run | Yrd Mat Min Mat Maximum Alert Level . | . . . . Low Security (%) 100 | 100 100 100 100 Level 1 . | . . . . Level 2 . | . . . . Level 3 . | . . . . Level 4 . | . . . . Level 5 . | . . . . High Security . | . . . . Max Security . | . . . . Peak Influence 70 | 15 70 50 30 Initial 7 | . 3 6 7 Average 19 | 3 27 21 5 Influence Increases 418 | 20 205 150 43 Destroy 0b10 Robot/C 240 | . 160 60 20 Destroy 0b10 Robot/NC 35 | 20 . 5 10 Destroy Leader 60 | . 40 10 10 Successful Hack 5 | . 5 . . Destroy Structure 3 | . . . 3 Lose Combat Pursuer 75 | . . 75 . Influence Decreases 418 | 15 194 146 63 Entered New Map 25 | . 2 10 13 Time Decay 355 | 15 172 126 42 Lost Part 38 | . 20 10 8 Squads Dispatched 1 | . 1 . . Investigation . | . . . . Extermination . | . . . . Reinforcement 1 | . 1 . . Assault . | . . . . Garrison . | . . . . Intercept . | . . . . Searches Triggered . | . . . . Construction Impeded . | . . . . Haulers Reinforced . | . . . . Active Scanning Responses . | . . . . Cargo Convoy Interrupts . | . . . . Stealth | -11 -10 -10 -9 --------- Run | Yrd Mat Min Mat Distress Signals . | . . . . Communications Jammed . | . . . . Distress Signals . | . . . . Times Spotted 23 | . 10 9 4 Peak Tracking Total 4 | . 3 4 3 Tactical Retreats 2 | . . 2 . Traps | -11 -10 -10 -9 ------- Run | Yrd Mat Min Mat Traps Triggered . | . . . . Indirectly . | . . . . Trap Hack Attempts . | . . . . Triggered . | . . . . Disarmed . | . . . . Reprogrammed . | . . . . Reused . | . . . . Traps Extracted . | . . . . Installed . | . . . . Triggered . | . . . . Machines | -11 -10 -10 -9 ---------- Run | Yrd Mat Min Mat Machines Disabled . | . . . . Max in Single Turn . | . . . . Machines Repaired . | . . . . Machines Dismantled . | . . . . Machines Sabotaged . | . . . . Overloaded Fab Kills . | . . . . Hacking | -11 -10 -10 -9 --------- Run | Yrd Mat Min Mat Machines Accessed 1 | . 1 . . Terminals 1 | . 1 . . Fabricators . | . . . . Repair Stations . | . . . . Recycling Units . | . . . . Scanalyzers . | . . . . Garrison Access . | . . . . Total Hacks 1 | . 1 . . Successful 1 | . 1 . . Failed . | . . . . Catastrophic . | . . . . Database Lockouts . | . . . . Manual . | . . . . Terminals 1 | . 1 . . Fabricators . | . . . . Repair Stations . | . . . . Recycling Units . | . . . . Scanalyzers . | . . . . Garrison Access . | . . . . Terminal Hacks 1 | . 1 . . Prototype ID Bank 1 | . 1 . . Fabricator Hacks . | . . . . Repair Station Hacks . | . . . . Recycling Unit Hacks . | . . . . Scanalyzer . | . . . . Garrison Access Hacks . | . . . . Unauthorized Hacks . | . . . . Terminals . | . . . . Fabricators . | . . . . Repair Stations . | . . . . Recycling Units . | . . . . Scanalyzers . | . . . . Garrison Access . | . . . . Data Cores Recovered . | . . . . Used . | . . . . Hacking Detections . | . . . . Full Trace Events . | . . . . Feedback Events . | . . . . Feedback Blocked . | . . . . Robot Schematics Acquired . | . . . . Robots Built . | . . . . Authchips . | . . . . Time . | . . . . Total Robot Build Rating . | . . . . Part Schematics Acquired . | . . . . Parts Built . | . . . . Authchips . | . . . . Time . | . . . . Total Part Build Rating . | . . . . Parts Repaired . | . . . . Time . | . . . . Parts Recycled . | . . . . Recycled Matter . | . . . . Retrieved Matter . | . . . . Retrieved Components . | . . . . Parts Scanalyzed . | . . . . Part Schematics Acquired . | . . . . Parts Damaged . | . . . . Bothacking | -11 -10 -10 -9 ------------ Run | Yrd Mat Min Mat Used RIF Installer . | . . . . Robots Hacked . | . . . . Non-combat . | . . . . Combat . | . . . . Robot Hacks Applied . | . . . . Relay Couplers Released . | . . . . Fabnet Peak Effective % . | . . . . Robots Rewired . | . . . . Allies Hacked . | . . . . Hacks Repelled . | . . . . Allies | -11 -10 -10 -9 -------- Run | Yrd Mat Min Mat Total Allies . | . . . . Largest Group . | . . . . Highest-Rated Group . | . . . . Highest-Rated Ally . | . . . . Total Orders . | . . . . Ally Attacks . | . . . . Total Damage . | . . . . Kills . | . . . . Allies Corrupted . | . . . . Allies Melted . | . . . . Intel | -11 -10 -10 -9 ------- Run | Yrd Mat Min Mat Active Infowar (turns) . | . . . . Robot Analysis Total . | . . . . Derelict Logs Recovered 1 | . . 1 . Drone Launches . | . . . . Drone Recoveries . | . . . . Exploration | -11 -10 -10 -9 ------------- Run | Yrd Mat Min Mat Turns Passed 1087 | 88 454 325 220 Spaces Moved 848 | 47 381 290 130 Core 33 | 2 13 . 18 Treads . | . . . . Legs . | . . . . Wheels 815 | 45 368 290 112 Hover . | . . . . Flight . | . . . . Fastest Speed 50 | 50 80 100 100 Average Speed 100 | 78 93 100 129 Slowest Speed 250 | 80 250 100 250 Overloaded Moves . | . . . . Propulsion Burnouts . | . . . . Robots Hopped . | . . . . Potential Cave-ins . | . . . . Cave-ins Triggered . | . . . . Exploration Rate (%) 32 | 4 61 51 14 Regions Visited 3 Branch Regions 1 Pre-discovered Areas . | . . . . Known Exits Taken . | . . . . Unknown Exits Taken 3 | 1 1 1 . Scrap Searched . | . . . . Spaces Dug . | . . . . Terrain Destroyed 2 | . . . 2 Melee . | . . . . Projectile . | . . . . AOE 2 | . . . 2 Terrain Rammed . | . . . . Walls Destroyed . | . . . . Machines Disabled . | . . . . Actions | -11 -10 -10 -9 --------- Run | Yrd Mat Min Mat Total 966 | 69 433 308 156 Wait 24 | . 18 . 6 Move 845 | 46 380 289 130 Hop . | . . . . Pick Up 5 | . 4 1 . Fast Attach 9 | 6 3 . . Attach 5 | . 1 2 2 Detach 1 | . 1 . . Swap 5 | 1 1 . 3 Drop 1 | . 1 . . Fire 64 | 16 24 16 8 Melee . | . . . . Ram 7 | . . . 7 Kick . | . . . . Crush . | . . . . Escape Stasis . | . . . . Rewire . | . . . . Trap . | . . . . Miscellaneous . | . . . . Route ------- -11/Scrapyard -10/Materials (discovered 2 exits: [*Mat] / [*Min]) -10/Mines -9/Materials History --------- Turn | Location | Event 8 | -11/Scrapyard | Discovered new exit (range 16) 89 | -11/Scrapyard | Entered Materials 238 | -10/Materials | Discovered new exit (range 14) 305 | -10/Materials | Build established: Mutant 373 | -10/Materials | Discovered new exit (range 15) 437 | -10/Materials | Core integrity fell below 50% 543 | -10/Materials | Entered Mines 550 | -10/Mines | Met a Derelict bent on vengeance 681 | -10/Mines | Core integrity fell below 20% 761 | -10/Mines | Learned Materials interactive machine intel 858 | -10/Mines | Discovered new exit (range 5) 868 | -10/Mines | Entered Materials 868 | -9/Materials | Evolved 2 slots: Propulsion x1, Utility x1 869 | -9/Materials | Loaded intel: 18 interactive machine locations 1057 | -9/Materials | Core integrity fell below 50% 1064 | -9/Materials | Lost 5 parts (1p1n1u2w) 1074 | -9/Materials | Core integrity fell below 20% 1088 | -9/Materials | Destroyed by Y-45 Defender with Beam Rifle Last Messages --------------- 01049_ R-06 Scavenger collects Sml. Storage Unit. 01050_ U-05 Engineer lays Concrete. 01054_ U-05 Engineer builds a Wall. 01054_ U-05 Engineer lays Concrete. 01055_ U-05 Engineer builds a Wall. 01055_ U-05 Engineer lays Concrete. 01058_ Slammed into Y-45 Defender. 01061_ Destabilizing: Core damaged (-20). 01067_ U-05 Engineer lays Concrete. 01073_ Slammed into Y-45 Defender. 01076_ U-05 Engineer lays Concrete. 01076_ U-05 Engineer builds a Wall. 01077_ U-05 Engineer lays Concrete. 01082_ Lrg. Battery destroyed. 01082_ Critical hit (Burn: +37). 01082_ U-05 Engineer lays Concrete. 01083_ Slammed into Y-45 Defender. 01083_ U-05 Engineer builds a Wall. 01085_ Slammed into Y-45 Defender. 01087_ U-05 Engineer builds a Wall. Map ----- +----------------------------------------------------+ | | | | | | | | | | | | | | | | | | | | | | | ?????????????????????????????????????????????????? | | ?????????????????????????????????????????????????? | | ???????##????????????????????????????????????????? | | ??????? #??????????????????????????????????????""? | | ????? #??????????????????????????????????????"T? | | ??? ####???????????????????????????????????""? | | """ "" #??????????########???????????????????? | | """"" """#??????????# #???????????????????? | | """"" R"#??????????# #???????????????????? | | """"" """?????####### "" #???????????????????? | | """ #?????### # S"" #???????????????????? | | #????##""###"""= "" #???????????????????? | | ####+######### # % !#???????????????????? | | % + #;#Y####???????????????????? | | ######## # m@ #????????????????????? | | #??????# = # % ##### ????????????? | | ##+########### %+ ?????????? | | [!! ## #% ##### = ?????????? | | [! ## # #?????????##?????????? | | "" "" !! ## ### ###????????????????????? | | R """ %!# # #??????????????????????? | | "" """ #### # #??????????????????????? | | #?# # #????????"""???????????? | | #############?#### #### #????????"""???????????? | | ?????????????????####???? #????????"S????????????? | | ????????????????????????? #????????"""???????????? | | ?????????????????????????+#?????????""???????????? | | ????????????????????????? ??????????????????????? | | ?????????????????????"""? ??????????????????????? | | ?????????????????????"Y?? ??????????????????????? | | ?????????????????????"""? ??????????????????????? | | ?????????????????????????????????????????????????? | | ?????????????????????????????????????????????????? | | ?????????????????????????????????????????????????? | | ?????????????????????????????????????????????????? | | ?????????????????????????????????????????????????? | | ?????????????????????????????????????????????????? | | ?????????????????????????????????????????????????? | | ?????????????????????????????????????????????????" | +----------------------------------------------------+ Best States ------------- Heat Dissipation 38 Energy Generation 10 Energy Capacity 450 Matter Stores 300 Matter Capacity 300 Sight Range 16 Terrain Scan Density 10 Core Shielding 20 Evasion (%) 44 Item Schematics ----------------- None Robot Schematics ------------------ None Fabricated ------------ Nothing Repaired ---------- Nothing Alien Tech Used ----------------- None Achievements -------------- None Challenges ------------ None Game ------ Seed PointyAblativeScanner Manual? 0 Play Time 00:08:36 Cumulative 10.9 hours Start 2025.10.04 @ 22:44:31 End 2025.10.04 @ 22:51:29 Sessions 1 Manual Loads 0 Difficulty Rogue Special Mode None Game No. 34 Rogue 27 Adventurer 7 Explorer 0 Win Type - Total 0 Types 0/0/0/0/0/0/0/0/0/0 Lore% 3 Gallery% 14 Achievement% 13 Wizard Run 0 Options --------- Layout 1 ASCII 0 Keyboard 1 Movement Vi Keybinds 0 Fullscreen 1 Font 24/Smallcaps Map View 76x35 Zoom Use 0% Tactical HUD 1 Map Filters NONE Filters NONE Steam 1 RUN: 7be3d60a-c3e3-4d99-9227-8c69e2881ad2